fUSD/lending_fUSD_20260109
["ID","MTS","AMOUNT","RATE_DAILY","PERIOD"]
[401155029,1767987044364,-500.0,0.00017973,2]
[401155030,1767987044373,-182.86859792,0.00017973,2]
[401155031,1767987044383,-500.0,0.00017973,2]
[401155032,1767987044392,-500.0,0.00017973,2]
[401155033,1767987044401,-500.0,0.00017973,2]
[401155034,1767987044411,-165.3256661,0.00017973,2]
[401155035,1767987044421,-546.15438132,0.00017973,2]
[401155036,1767987044430,-208.06887662,0.00017973,2]
[401155037,1767987044440,-150.0,0.00017973,2]
[401155038,1767987044449,-150.0,0.00017973,2]
[401155039,1767987044459,-152.75103688,0.00017982,2]
[401155040,1767987044471,-500.0,0.00017982,2]
[401155041,1767987044481,-1000.0,0.00017985,2]
[401155042,1767987044491,-219.64234623,0.0001799,2]
[401155043,1767987044500,-219.64234623,0.0001799,2]
[401155044,1767987044510,-398.95247782,0.00017995,2]
[401155045,1767987044520,-224112.8965016,0.00017997,2]
[401155046,1767987044530,-19111.0857225,0.00017997,2]
[401155047,1767987044541,-10175.0574745,0.00017997,2]
[401155048,1767987044551,-1125.7211981,0.00017997,2]
[401155049,1767987044560,-2916.1870538,0.00017997,2]
[401155050,1767987044570,-47619.7607346,0.00017997,2]
[401155051,1767987044580,-45717.7587023,0.00017997,2]
[401155052,1767987044589,-24517.8360791,0.00017997,2]
[401155053,1767987044599,-45717.7587023,0.00017997,2]
[401155054,1767987044608,-150.0,0.00017999,2]
[401155055,1767987044618,-273.60393039,0.00017999,2]
[401155056,1767987044628,-1006.3197,0.00017999,2]
[401155057,1767987044638,-7824.46415532,0.00017999,2]
[401155058,1767987044648,-300.0,0.00017999,2]
[401155059,1767987044658,-359.08313245,0.00017999,2]
[401155060,1767987044667,-666.0,0.00017999,2]
[401155061,1767987044676,-300.0,0.00017999,2]
[401155062,1767987044686,-300.0,0.00017999,2]
[401155063,1767987044695,-666.0,0.00017999,2]
[401155064,1767987044704,-300.0,0.00017999,2]
[401155065,1767987044714,-11541.22312061,0.00017999,2]
[401155066,1767987044723,-300.0,0.00017999,2]
[401155067,1767987044733,-300.0,0.00017999,2]
[401155068,1767987044743,-666.0,0.00017999,2]
[401155069,1767987044753,-150.0,0.00017999,2]
[401155070,1767987044762,-150.65671948,0.00017999,2]
[401155071,1767987044771,-720000.81990996,0.00018,2]
[401155073,1767987045089,-9080.01859324,0.00018,2]
[401155074,1767987045101,-461.92439387,0.00018,2]
[401155075,1767987045112,-310.71335497,0.00018,2]
[401155076,1767987045123,-322.51763571,0.00018,2]
[401155077,1767987045134,-409820.59419466,0.00018,2]
[401155078,1767987045149,-8593.33240655,0.00018,2]
[401155080,1767987046549,-4828.141,0.00018,2]
[401155081,1767987046563,-997.91842106,0.00018,2]
[401155082,1767987046574,-45450.1772249,0.00018,2]
[401155083,1767987046628,-554.21259143,0.00018,2]
[401155084,1767987046639,-1397.18855336,0.00018,2]
[401155085,1767987046651,-196205.09905489,0.00018,2]
[401155086,1767987046662,-448.80928647,0.00018,2]
[401155087,1767987046673,-313.70617766,0.00018,2]
[401155088,1767987046692,-7323.69730058,0.00018,2]
[401155089,1767987046703,-655.979193,0.00018,2]
[401155090,1767987046715,-368.90644314,0.00018,2]
[401155091,1767987046726,-368.00279876,0.00018,2]
[401155092,1767987046737,-26342.2267449,0.00018,2]
[401155093,1767987046782,-274.543,0.00018,2]
[401155094,1767987046793,-800.197906,0.00018,2]
[401155095,1767987046804,-619.12340428,0.00018,2]
[401155096,1767987046815,-3318.44912896,0.00018,2]
[401155097,1767987046826,-24029.43311997,0.00018,2]
[401155098,1767987046838,-1396.12999579,0.00018,2]
[401155099,1767987048132,-661.58,0.00016082,2]
[401155100,1767987048142,-3182.383975,0.00018,2]
[401155101,1767987048724,-22750.0,0.00018,2]
[401155102,1767987048735,-34573.06622596,0.00018,2]
[401155103,1767987048748,-2306.23392279,0.00018,2]
[401155104,1767987048786,-3857.7123853,0.00018,2]
[401155105,1767987048798,-878.15443804,0.00018,2]
[401155106,1767987048810,-4545.0,0.00018,2]
[401155107,1767987048822,-908.31,0.00018,2]
[401155108,1767987048874,-439.48578443,0.00018,2]
[401155109,1767987102976,2471.15066259,0.00019998,30]
[401155122,1767988232022,-195.0,0.00011605,2]
[401155123,1767988232031,-250.0,0.00011605,2]
[401155124,1767988232041,-195.0,0.00011605,2]
[401155125,1767988232050,-249.25305166,0.00011607,2]
[401155126,1767988232101,-501.73709339,0.00011607,2]
[401155127,1767988232110,-1100.0,0.00012218,2]
[401155128,1767988232120,-89.7020435,0.00012665,2]
[401155129,1767988232131,-100.86543964,0.00012665,2]
[401155130,1767988232140,-1200.0,0.00012765,2]
[401155131,1767988232149,-250.0,0.00012766,2]
[401155132,1767988232159,-250.0,0.00012766,2]
[401155133,1767988232169,-189.50825211,0.00012766,2]
[401155134,1767988232179,-195.0,0.00012766,2]
[401155135,1767988232188,-195.0,0.00012766,2]
[401155136,1767988232198,-300.0,0.00012766,2]
[401155137,1767988232207,-95.52895502,0.00012766,2]
[401155138,1767988232220,-99.47104498,0.00012766,2]
[401155139,1767988232229,-300.0,0.00012766,2]
[401155140,1767988232240,-1100.0,0.00012861,2]
[401155141,1767988232250,-166.66,0.00013125,2]
[401155142,1767988232259,-166.66,0.00013401,2]
[401155143,1767988232269,-1100.0,0.00013538,2]
[401155144,1767988232278,-166.66,0.00013677,2]
[401155181,1767988232603,-1555.76,0.00013853,2]
[401155186,1767988232632,-166.66,0.00013954,2]
[401155188,1767988232642,-214.95,0.0001404,2]
[401155190,1767988232651,-1680.0,0.00014041,2]
[401155192,1767988232660,-500.0,0.00014164,2]
[401155194,1767988232669,-166.66,0.0001423,2]
[401155195,1767988232678,-1100.0,0.0001425,2]
[401155196,1767988232687,-7793.39522863,0.00014349,2]
[401155197,1767988232699,-2723.7,0.00014349,2]
[401155198,1767988232710,-666.96670514,0.00014349,2]
[401155199,1767988232835,-7138.15806623,0.00014349,2]
[401155200,1767988232845,-200.0,0.00014385,2]
[401155201,1767988232854,-166.66,0.00014506,2]
[401155202,1767988232863,-150.0,0.00014641,2]
[401155203,1767988232874,-1100.0,0.00014963,2]
[401155204,1767988232883,-250.0,0.00015158,2]
[401155205,1767988232893,-190.56748314,0.0001527,2]
[401155206,1767988232902,-150.0,0.00015341,2]
[401155207,1767988232912,-554.0,0.00015341,2]
[401155208,1767988232922,-5469.63784536,0.0001536,2]
[401155209,1767988232931,-230.26346356,0.0001537,2]
[401155210,1767988232940,-500.0,0.0001537,2]
[401155211,1767988232952,-200.0,0.0001537,2]
[401155212,1767988232961,-151.0,0.0001537,2]
[401155213,1767988232970,-200.0,0.0001537,2]
[401155214,1767988232980,-151.0,0.0001537,2]
[401155215,1767988232989,-151.0,0.0001537,2]
[401155216,1767988232998,-151.0,0.0001537,2]
[401155217,1767988233007,-151.0,0.0001537,2]
[401155218,1767988233016,-151.0,0.0001537,2]
[401155219,1767988233026,-151.0,0.0001537,2]
[401155220,1767988233035,-151.0,0.0001537,2]
[401155221,1767988233044,-151.0,0.0001537,2]
[401155222,1767988233053,-151.0,0.0001537,2]
[401155223,1767988233063,-151.0,0.0001537,2]
[401155224,1767988233072,-151.0,0.0001537,2]
[401155225,1767988233082,-151.0,0.0001537,2]
[401155226,1767988233091,-151.0,0.0001537,2]
[401155227,1767988233100,-151.0,0.0001537,2]
[401155228,1767988233109,-151.0,0.0001537,2]
[401155229,1767988233119,-151.0,0.0001537,2]
[401155230,1767988233129,-151.0,0.0001537,2]
[401155231,1767988233138,-151.0,0.0001537,2]
[401155232,1767988233148,-500.0,0.0001537,2]
[401155233,1767988233157,-500.0,0.0001537,2]
[401155234,1767988233167,-151.0,0.0001537,2]
[401155235,1767988233176,-500.0,0.0001537,2]
[401155236,1767988233185,-500.0,0.0001537,2]
[401155237,1767988233195,-500.0,0.0001537,2]
[401155238,1767988233204,-500.0,0.0001537,2]
[401155239,1767988233213,-500.0,0.0001537,2]
[401155240,1767988233222,-500.0,0.0001537,2]
[401155241,1767988233231,-500.0,0.0001537,2]
[401155242,1767988233240,-500.0,0.0001537,2]
[401155243,1767988233250,-500.0,0.0001537,2]
[401155244,1767988233259,-500.0,0.0001537,2]
[401155245,1767988233268,-500.0,0.0001537,2]
[401155246,1767988233277,-500.0,0.0001537,2]
[401155247,1767988233286,-500.0,0.0001537,2]
[401155248,1767988233295,-200.0,0.0001537,2]
[401155249,1767988233304,-500.0,0.0001537,2]
[401155250,1767988233313,-500.0,0.0001537,2]
[401155251,1767988233322,-500.0,0.0001537,2]
[401155252,1767988233332,-500.0,0.0001537,2]
[401155253,1767988233341,-500.0,0.0001537,2]
[401155254,1767988233351,-500.0,0.0001537,2]
[401155255,1767988233360,-500.0,0.0001537,2]
[401155256,1767988233369,-500.0,0.0001537,2]
[401155257,1767988233379,-500.0,0.0001537,2]
[401155258,1767988233388,-151.0,0.0001537,2]
[401155259,1767988233397,-151.0,0.0001537,2]
[401155260,1767988233407,-151.0,0.0001537,2]
[401155261,1767988233418,-151.0,0.0001537,2]
[401155262,1767988233427,-151.0,0.0001537,2]
[401155263,1767988233436,-151.0,0.0001537,2]
[401155264,1767988233445,-151.0,0.0001537,2]
[401155265,1767988233455,-151.0,0.0001537,2]
[401155266,1767988233464,-151.0,0.0001537,2]
[401155267,1767988233473,-151.0,0.0001537,2]
[401155268,1767988233482,-151.0,0.0001537,2]
[401155269,1767988233491,-151.0,0.0001537,2]
[401155270,1767988233501,-971.66,0.0001537,2]
[401155271,1767988233510,-157.79856203,0.00015378,2]
[401155272,1767988233519,-500.0,0.00015378,2]
[401155273,1767988233528,-500.0,0.00015378,2]
[401155274,1767988233537,-500.0,0.00015378,2]
[401155275,1767988233546,-500.0,0.00015378,2]
[401155276,1767988233555,-500.0,0.00015378,2]
[401155277,1767988233564,-500.0,0.00015378,2]
[401155278,1767988233574,-500.0,0.00015378,2]
[401155279,1767988233583,-500.0,0.00015378,2]
[401155280,1767988233592,-500.0,0.00015378,2]
[401155281,1767988233601,-329.76064718,0.00015378,2]
[401155282,1767988233610,-500.0,0.00015378,2]
[401155283,1767988233620,-500.0,0.00015378,2]
[401155284,1767988233629,-500.0,0.00015378,2]
[401155285,1767988233638,-500.0,0.00015378,2]
[401155286,1767988233649,-500.0,0.00015378,2]
[401155287,1767988233660,-500.0,0.00015378,2]
[401155288,1767988233674,-500.0,0.00015378,2]
[401155289,1767988233683,-500.0,0.00015378,2]
[401155290,1767988233692,-500.0,0.00015378,2]
[401155291,1767988233702,-500.0,0.00015378,2]
[401155292,1767988233723,-500.0,0.00015378,2]
[401155293,1767988233741,-500.0,0.00015378,2]
[401155294,1767988233750,-500.0,0.00015378,2]
[401155295,1767988233760,-500.0,0.00015378,2]
[401155296,1767988233769,-500.0,0.00015378,2]
[401155297,1767988233778,-500.0,0.00015378,2]
[401155298,1767988233792,-500.0,0.00015378,2]
[401155299,1767988233801,-500.0,0.00015378,2]
[401155300,1767988233810,-500.0,0.00015378,2]
[401155301,1767988233820,-500.0,0.00015378,2]
[401155302,1767988233831,-500.0,0.00015378,2]
[401155303,1767988233840,-500.0,0.00015378,2]
[401155304,1767988233850,-500.0,0.00015378,2]
[401155305,1767988233860,-500.0,0.00015378,2]
[401155306,1767988233869,-500.0,0.00015378,2]
[401155307,1767988233878,-500.0,0.00015378,2]
[401155308,1767988233888,-500.0,0.00015378,2]
[401155309,1767988233897,-500.0,0.00015378,2]
[401155310,1767988233907,-317.84582461,0.00015378,2]
[401155311,1767988233915,-500.0,0.00015378,2]
[401155312,1767988233926,-500.0,0.00015378,2]
[401155313,1767988233935,-500.0,0.00015378,2]
[401155314,1767988233944,-500.0,0.00015378,2]
[401155315,1767988233953,-500.0,0.00015378,2]
[401155316,1767988233962,-500.0,0.00015378,2]
[401155317,1767988233971,-500.0,0.00015378,2]
[401155318,1767988233980,-500.0,0.00015378,2]
[401155319,1767988233989,-500.0,0.00015378,2]
[401155320,1767988233998,-500.0,0.00015378,2]
[401155321,1767988234008,-500.0,0.00015378,2]
[401155322,1767988234018,-500.0,0.00015378,2]
[401155323,1767988234027,-500.0,0.00015378,2]
[401155324,1767988234039,-500.0,0.00015378,2]
[401155325,1767988234048,-500.0,0.00015378,2]
[401155326,1767988234057,-500.0,0.00015378,2]
[401155327,1767988234066,-500.0,0.00015378,2]
[401155328,1767988234075,-500.0,0.00015378,2]
[401155329,1767988234084,-500.0,0.00015378,2]
[401155330,1767988234093,-500.0,0.00015378,2]
[401155331,1767988234102,-500.0,0.00015378,2]
[401155332,1767988234111,-500.0,0.00015378,2]
[401155333,1767988234121,-500.0,0.00015378,2]
[401155334,1767988234130,-281.78458246,0.00015378,2]
[401155335,1767988234140,-16439.89988408,0.00015379,2]
[401155336,1767988234195,-1746.42981847,0.00015379,2]
[401155337,1767988234206,-325.00010413,0.00015379,2]
[401155338,1767988234217,-361.04264806,0.00015379,2]
[401155339,1767988234228,-5619.03641316,0.00015379,2]
[401155340,1767988234237,-6990.15998207,0.00015379,2]
[401155341,1767988234247,-2500.0,0.00015379,2]
[401155342,1767988234256,-295.1864425,0.00015396,2]
[401155343,1767988234265,-554.0,0.00015396,2]
[401155344,1767988234275,-12322.12969884,0.00015405,2]
[401155345,1767988234286,-420.26169723,0.00015405,2]
[401155346,1767988234322,-3099.35709771,0.00015405,2]
[401155347,1767988234331,-9492.91129361,0.00015405,2]
[401155348,1767988234342,-760.80856062,0.00015405,2]
[401155349,1767988234353,-708.27235126,0.00015405,2]
[401155356,1767988238781,-476.9799995,0.00015305,2]
[401155357,1767988238796,-408.348,0.00015305,2]
[401155358,1767988238807,-907.14,0.00015305,2]
[401155359,1767988238818,-1586.66,0.00015305,2]
[401155360,1767988238831,-340.00534089,0.00015305,2]
[401155370,1767988240164,-3562.09765961,0.00015305,2]
[401155371,1767988240174,-519.65262363,0.00015379,2]
[401155372,1767988240188,-1980.34737637,0.00015379,2]
[401155373,1767988240197,-404.43376918,0.00015405,2]
[401155374,1767988240207,-904.32629993,0.00015405,2]
[401155375,1767988240216,-151.0,0.00015425,2]
[401155376,1767988240225,-151.0,0.00015425,2]
[401155377,1767988240234,-151.0,0.00015425,2]
[401155378,1767988240243,-151.0,0.00015425,2]
[401155379,1767988240252,-151.0,0.00015438,2]
[401155380,1767988240262,-151.0,0.00015438,2]
[401155381,1767988240271,-2351.0,0.00015445,2]
[401155382,1767988240280,-554.0,0.00015451,2]
[401155383,1767988240289,-151.0,0.00015451,2]
[401155384,1767988240298,-151.0,0.00015451,2]
[401155385,1767988240308,-500.0,0.00015467,2]
[401155386,1767988240317,-262.18354588,0.00015468,2]
[401155387,1767988240326,-247.19828258,0.00015478,2]
[401155388,1767988240335,-233.05084025,0.00015478,2]
[401155389,1767988240344,-500.0,0.00015478,2]
[401155390,1767988240353,-277.27611667,0.00015478,2]
[401155391,1767988240361,-174.2279283,0.00015478,2]
[401155392,1767988240371,-500.0,0.00015478,2]
[401155393,1767988240380,-556.51,0.00015478,2]
[401155394,1767988240389,-500.0,0.00015478,2]
[401155395,1767988240398,-178.26,0.00015478,2]
[401155396,1767988240407,-500.0,0.00015478,2]
[401155397,1767988240417,-500.0,0.00015478,2]
[401155398,1767988240428,-549.36394183,0.00015478,2]
[401155399,1767988240437,-150.0,0.00015478,2]
[401155400,1767988240450,-554.0,0.00015505,2]
[401155401,1767988240460,-9164.97687981,0.0001554,2]
[401155402,1767988240470,-554.0,0.0001556,2]
[401155403,1767988240479,-573.37968592,0.00015568,2]
[401155404,1767988240489,-500.0,0.00015568,2]
[401155405,1767988240498,-500.0,0.00015568,2]
[401155406,1767988240508,-500.0,0.00015568,2]
[401155407,1767988240518,-500.0,0.00015568,2]
[401155409,1767988240527,-500.0,0.00015568,2]
[401155411,1767988240536,-500.0,0.00015568,2]
[401155413,1767988240545,-500.0,0.00015568,2]
[401155415,1767988240555,-500.0,0.00015568,2]
[401155416,1767988240564,-500.0,0.00015568,2]
[401155417,1767988240573,-500.0,0.00015568,2]
[401155419,1767988240583,-500.0,0.00015568,2]
[401155421,1767988240592,-398.9473792,0.00015568,2]
[401155422,1767988240602,-500.0,0.00015568,2]
[401155423,1767988240611,-597.23624248,0.00015568,2]
[401155424,1767988240621,-219.64234623,0.00015569,2]
[401155425,1767988240632,-1000.0,0.00015579,2]
[401155426,1767988240641,-22690.8883,0.00015579,2]
[401155427,1767988240651,-554.0,0.00015615,2]
[401155429,1767988240661,-971.66,0.00015644,2]
[401155430,1767988240670,-554.0,0.0001567,2]
[401155431,1767988240681,-500.0,0.00015678,2]
[401155432,1767988240691,-484.1427963,0.00015678,2]
[401155433,1767988240701,-15841.74849375,0.00015682,2]
[401155434,1767988240711,-12270.7522746,0.00015682,2]
[401155435,1767988240720,-1100.0,0.00015711,2]
[401155436,1767988240729,-554.0,0.00015725,2]
[401155437,1767988240738,-3240.0,0.00015735,2]
[401155438,1767988240748,-285.11800161,0.00015776,2]
[401155439,1767988240757,-554.0,0.00015779,2]
[401155440,1767988240767,-554.0,0.00015834,2]
[401155441,1767988240777,-262.18354582,0.00015873,2]
[401155442,1767988240787,-554.0,0.00015889,2]
[401155443,1767988240800,-626.22881488,0.00015918,2]
[401155444,1767988240810,-202.84026902,0.00015918,2]
[401155445,1767988240820,-200.0,0.00015918,2]
[401155446,1767988240830,-971.66,0.00015918,2]
[401155447,1767988240840,-554.0,0.00015944,2]
[401155448,1767988240849,-15841.74849375,0.00015959,2]
[401155449,1767988240858,-12270.7522746,0.00015959,2]
[401155450,1767988240869,-554.0,0.00015999,2]
[401155451,1767988240879,-554.0,0.00016053,2]
[401155452,1767988240889,-554.0,0.00016108,2]
[401155453,1767988240899,-554.0,0.00016163,2]
[401155454,1767988240909,-152.0,0.00016181,3]
[401155455,1767988240918,-971.66,0.00016192,2]
[401155456,1767988240928,-554.0,0.00016218,2]
[401155457,1767988240937,-15841.74849375,0.00016237,2]
[401155458,1767988240947,-12270.7522746,0.00016237,2]
[401155459,1767988240957,-554.0,0.00016273,2]
[401155460,1767988240966,-262.18354582,0.00016279,2]
[401155461,1767988240975,-554.0,0.00016327,2]
[401155462,1767988240985,-554.0,0.00016382,2]
[401155463,1767988240994,-152.0,0.00016391,4]
[401155464,1767988241004,-554.0,0.00016437,2]
[401155465,1767988241013,-11419.86,0.00016438,2]
[401155466,1767988241023,-971.66,0.00016465,2]
[401155467,1767988241032,-200.0,0.00016466,2]
[401155468,1767988241042,-554.0,0.00016492,2]
[401155469,1767988241051,-1100.0,0.00016496,2]
[401155470,1767988241060,-15841.74849375,0.00016514,2]
[401155471,1767988241069,-12270.7522746,0.00016514,2]
[401155472,1767988241078,-554.0,0.00016546,2]
[401155473,1767988241088,-556.02140532,0.00016601,2]
[401155474,1767988241098,-152.0,0.00016602,5]
[401155475,1767988241107,-262.18354582,0.00016684,2]
[401155476,1767988241117,-971.66,0.00016739,2]
[401155477,1767988241126,-1000.0,0.00016748,2]
[401155478,1767988241135,-342.05,0.00016757,2]
[401155479,1767988241472,-15841.74849375,0.00016791,2]
[401155480,1767988241481,-12270.7522746,0.00016791,2]
[401155481,1767988241490,-152.0,0.00016813,6]
[401155482,1767988241500,-5554.21,0.00016823,2]
[401155483,1767988241509,-179.14,0.0001686,2]
[401155484,1767988241519,-171.4,0.0001686,2]
[401155485,1767988241528,-171.4,0.0001686,2]
[401155486,1767988241537,-179.14,0.0001686,2]
[401155487,1767988241546,-556.4,0.0001686,2]
[401155488,1767988241555,-179.14,0.0001686,2]
[401155489,1767988241565,-171.4,0.0001686,2]
[401155490,1767988241574,-185.59,0.0001686,2]
[401155491,1767988241583,-180.45,0.0001686,2]
[401155492,1767988241593,-50546.06,0.00016986,2]
[401155493,1767988241602,-3292.0,0.0001699,2]
[401155494,1767988241612,-971.66,0.00017013,2]
[401155495,1767988241621,-200.0,0.00017014,2]
[401155496,1767988241630,-500.0,0.00017023,2]
[401155497,1767988241640,-150.0,0.00017023,2]
[401155498,1767988241650,-150.0,0.00017023,2]
[401155499,1767988241659,-150.0,0.00017023,2]
[401155500,1767988241669,-500.0,0.00017023,2]
[401155501,1767988241679,-150.0,0.00017023,2]
[401155502,1767988241689,-152.0,0.00017023,7]
[401155503,1767988241698,-482.82,0.00017041,2]
[401155504,1767988241708,-482.82,0.00017041,2]
[401155505,1767988241717,-461.6,0.00017041,2]
[401155506,1767988241726,-661.58,0.00017041,2]
[401155507,1767988241735,-661.58,0.00017041,2]
[401155508,1767988241744,-661.58,0.00017041,2]
[401155509,1767988241754,-661.58,0.00017041,2]
[401155510,1767988241763,-661.58,0.00017041,2]
[401155511,1767988241773,-175.26,0.00017061,2]
[401155512,1767988241783,-15841.74849375,0.00017068,2]
[401155513,1767988241795,-12270.7522746,0.00017068,2]
[401155514,1767988241805,-214.95,0.00017076,2]
[401155515,1767988241814,-500.0,0.00017078,2]
[401155516,1767988241824,-150.0,0.00017078,2]
[401155517,1767988241834,-150.0,0.00017078,2]
[401155518,1767988241844,-150.0,0.00017078,2]
[401155519,1767988241854,-500.0,0.00017078,2]
[401155520,1767988241863,-150.32834793,0.00017078,2]
[401155521,1767988241872,-262.18354582,0.00017089,2]
[401155522,1767988241882,-500.0,0.00017099,2]
[401155523,1767988241892,-500.0,0.00017099,2]
[401155524,1767988241902,-1000.0,0.00017099,2]
[401155525,1767988241911,-500.0,0.00017099,2]
[401155526,1767988241920,-1000.0,0.00017099,2]
[401155527,1767988241930,-322.6107,0.00017099,2]
[401155528,1767988241939,-500.0,0.00017099,2]
[401155529,1767988241949,-1000.0,0.00017099,2]
[401155530,1767988241958,-500.0,0.00017099,2]
[401155531,1767988241968,-1000.0,0.00017099,2]
[401155532,1767988241977,-500.0,0.00017099,2]
[401155533,1767988241986,-1000.0,0.00017099,2]
[401155534,1767988241995,-500.0,0.00017099,2]
[401155535,1767988242005,-1000.0,0.00017099,2]
[401155536,1767988242015,-500.0,0.00017099,2]
[401155537,1767988242025,-1000.0,0.00017099,2]
[401155538,1767988242034,-500.0,0.00017099,2]
[401155539,1767988242043,-1000.0,0.00017099,2]
[401155540,1767988242053,-500.0,0.00017099,2]
[401155541,1767988242062,-1000.0,0.00017099,2]
[401155542,1767988242071,-571.49862836,0.00017099,2]
[401155543,1767988242080,-1000.0,0.00017099,2]
[401155544,1767988242089,-1000.0,0.00017099,2]
[401155545,1767988242099,-2000.0,0.00017099,2]
[401155546,1767988242108,-1000.0,0.00017099,2]
[401155547,1767988242117,-2000.0,0.00017099,2]
[401155548,1767988242127,-2000.0,0.00017099,2]
[401155549,1767988242136,-2000.0,0.00017099,2]
[401155550,1767988242145,-2000.0,0.00017099,2]
[401155551,1767988242154,-2000.0,0.00017099,2]
[401155552,1767988242164,-2000.0,0.00017099,2]
[401155553,1767988242174,-2000.0,0.00017099,2]
[401155554,1767988242183,-500.0,0.00017099,2]
[401155555,1767988242193,-407.91279506,0.00017099,2]
[401155556,1767988242203,-500.0,0.00017099,2]
[401155557,1767988242213,-500.0,0.00017099,2]
[401155558,1767988242222,-500.0,0.00017099,2]
[401155559,1767988242231,-553.64373807,0.00017099,2]
[401155560,1767988242241,-500.0,0.00017099,2]
[401155561,1767988242251,-620.0,0.00017099,2]
[401155562,1767988242259,-500.0,0.00017099,2]
[401155563,1767988242268,-500.0,0.00017099,2]
[401155564,1767988242278,-500.0,0.00017099,2]
[401155565,1767988242287,-500.0,0.00017099,2]
[401155566,1767988242296,-500.0,0.00017099,2]
[401155567,1767988242305,-500.0,0.00017099,2]
[401155568,1767988242314,-477.21977526,0.00017133,2]
[401155569,1767988242324,-150.0,0.00017133,2]
[401155570,1767988242333,-150.0,0.00017133,2]
[401155571,1767988242342,-284.45106114,0.00017133,2]
[401155572,1767988242351,-275.7864976,0.00017133,2]
[401155573,1767988242361,-159.10718444,0.00017151,2]
[401155574,1767988242370,-732.4,0.00017178,2]
[401155575,1767988242379,-302.73,0.00017178,2]
[401155576,1767988242389,-323.63,0.00017178,2]
[401155577,1767988242399,-155.23,0.00017178,2]
[401155578,1767988242409,-556.4,0.00017178,2]
[401155579,1767988242418,-358.23,0.00017178,2]
[401155580,1767988242427,-342.8,0.00017178,2]
[401155581,1767988242437,-556.4,0.00017178,2]
[401155582,1767988242447,-466.84,0.00017178,2]
[401155583,1767988242456,-556.4,0.00017178,2]
[401155584,1767988242465,-466.84,0.00017178,2]
[401155585,1767988242474,-556.24,0.00017178,2]
[401155586,1767988242484,-466.84,0.00017178,2]
[401155587,1767988242493,-200.81420272,0.00017187,2]
[401155588,1767988242502,-150.0,0.00017187,2]
[401155589,1767988242512,-152.0,0.00017234,8]
[401155590,1767988242521,-150.0,0.00017242,2]
[401155591,1767988242530,-1000.0,0.00017262,2]
[401155592,1767988242540,-971.66,0.00017287,2]
[401155593,1767988242549,-178.73,0.00017297,2]
[401155594,1767988242558,-1100.0,0.00017321,2]
[401155595,1767988242568,-15841.74849375,0.00017346,2]
[401155596,1767988242578,-12270.7522746,0.00017346,2]
[401155597,1767988242587,-447.0,0.00017387,2]
[401155598,1767988242597,-152.0,0.00017444,9]
[401155599,1767988242606,-262.18354582,0.00017495,2]
[401155600,1767988242615,-447.0,0.00017522,2]
[401155601,1767988242624,-226.0,0.00017609,2]
[401155602,1767988242634,-15841.74849375,0.00017623,2]
[401155603,1767988242643,-12270.7522746,0.00017623,2]
[401155604,1767988242653,-2082.29932478,0.0001764,2]
[401155605,1767988242662,-574.12855637,0.00017647,2]
[401155606,1767988242673,-152.0,0.00017655,10]
[401155607,1767988242683,-1098.04,0.00017672,2]
[401155608,1767988242692,-214.95,0.00017678,2]